Cogmind - Beta 9.4 @@@ ROGUE MODE // 2020.03.08 @ 16:25:24 Player: samspot Result: Destroyed by Y-45 Defender with Heavy Assault Rifle Performance ------------- Evolutions (1) 500 Regions Visited (2) 400 Robots Destroyed (28) 140 Value Destroyed (767) 767 Prototype IDs (2) 40 Alien Tech Used (0) 0 Bonus (0) 0 TOTAL SCORE: 1847 Bonus ------- None Cogmind --------- Core Integrity 0/400 Matter 188/300 Energy 265/265 System Corruption 0% Temperature Cool (9) Movement Walking (120) Location -9/Materials Parts ------- > --- POWER (1) -------- Improved Ion Engine > --- PROPULSION (4) --- Light Treads Light Treads Aluminum Leg Aluminum Leg > --- UTILITY (2) ------ Melee Analysis Suite > --- WEAPON (2) ------- Heavy Assault Rifle Heavy Mace > --- INVENTORY (4) ---- Improved Terrain Scanner Heavy Mace Peak State ------------ > --- POWER ------------ Improved Ion Engine > --- PROPULSION ------- Aluminum Leg Aluminum Leg Aluminum Leg Aluminum Leg > --- UTILITY ---------- Small Storage Unit Melee Analysis Suite > --- WEAPON ----------- Heavy Mace Heavy Mace > --- INVENTORY -------- Ion Engine Light Ion Engine Improved Terrain Scanner Heavy Assault Rifle Grenade Launcher Mining Claw [Rating: 16] Favorites ----------- Power Ion Engine Engine Ion Engine Propulsion Aluminum Leg Treads Light Treads Leg Aluminum Leg Wheel Compact Wheel Utility Small Storage Unit Device Improved Terrain Scanner Storage Small Storage Unit Processor Melee Analysis Suite Weapon Medium Laser Energy Gun Medium Laser Energy Cannon Beam Cannon Ballistic Gun Heavy Assault Rifle Launcher Grenade Launcher Special Weapon Mining Laser Impact Weapon Heavy Mace Slashing Weapon Mining Claw Build | -11 -10 -9 ------- Run | Scr Mat Mat Slots Evolved 2 | . . 2 Power . | . . . Propulsion 2 | . . 2 Utility . | . . . Weapon . | . . . Parts Attached 41 | 6 9 26 Power 6 | 1 . 5 Engine 6 | 1 . 5 Core . | . . . Reactor . | . . . Propulsion 10 | 2 . 8 Treads 2 | . . 2 Leg 7 | 2 . 5 Wheel 1 | . . 1 Hover . | . . . Flight . | . . . Utility 5 | 1 3 1 Device 3 | . 3 . Storage 1 | 1 . . Processor 1 | . . 1 Hackware . | . . . Protection . | . . . Artifact . | . . . Weapon 20 | 2 6 12 Energy Gun 4 | 2 2 . Energy Cannon 1 | . . 1 Ballistic Gun 4 | . . 4 Ballistic Cannon . | . . . Launcher 3 | . 1 2 Special Weapon 1 | . 1 . Impact Weapon 4 | . . 4 Slashing Weapon 3 | . 2 1 Piercing Weapon . | . . . Special Melee Weapon . | . . . Unidentified Prototypes . | . . . Parts Lost 11 | . 2 9 Power 2 | . . 2 Propulsion 4 | . . 4 Utility 1 | . . 1 Weapon 4 | . 2 2 Highest Loss Streak 6 | . 1 6 Average Slot Usage (%) 89 | . 94 85 Engine 11 | . 14 10 Treads 3 | . . 5 Leg 25 | . 28 23 Wheel 1 | . . 3 Device 4 | . 9 . Storage 11 | . 14 10 Processor 5 | . . 10 Energy Gun 5 | . 11 . Ballistic Gun 4 | . . 8 Launcher 1 | . 3 . Impact Weapon 5 | . . 9 Slashing Weapon 5 | . 11 . Naked Turns . | . . . Heaviest Build 18 | 13 15 18 Greatest Support 40 | 20 20 40 Greatest Overweight (x) 2 | 1 . 2 Average Overweight (x) . | . . . Largest Inventory Capacity 6 | 6 6 6 Average Capacity 5 | 5 6 5 Most Carried 6 | 6 6 6 Average Carried 5 | 5 5 4 Final Capacity 6 | 6 6 4 Final Carried 6 | 6 6 2 Class Distribution -------------------- 85% | Mutant 14% | Scavenger-Mutant Dominant Class ---------------- Mutant | -10/Materials Scavenger-Mutant | -9/Materials Resources | -11 -10 -9 ----------- Run | Scr Mat Mat Matter Collected 632 | 190 230 212 Remotely . | . . . Salvage Created 866 | . 382 484 Parts 55 | . 24 31 Haulers Intercepted 1 | . . 1 Recyclers Shooed 1 | . . 1 Parts Field Recycled . | . . . Retrieved Matter . | . . . Parts Self-Destructed . | . . . Prevented . | . . . Kills | -11 -10 -9 ------- Run | Scr Mat Mat Combat Hostiles Destroyed 19 | . 9 10 Melee 5 | . 3 2 Guns 5 | . 3 2 AOE 7 | . 3 4 Classes Destroyed 10 | . 5 5 Worker 1 | . . 1 Builder 3 | . . 3 Tunneler 2 | . 1 1 Hauler 1 | . . 1 Mechanic 1 | . 1 . Watcher 1 | . 1 . Swarmer 1 | . 1 . Grunt 15 | . 8 7 Duelist 1 | . . 1 Sentry 2 | . . 2 Best Kill Streak 6 | . 6 4 Combat Bots Only 4 | . 4 3 Max Kills in Single Turn 2 | . 1 2 Gunslinging . | . . . Exploded 1 | . 1 1 Melee 1 | . 1 1 Uniques/NPCs Destroyed . | . . . Combat | -11 -10 -9 -------- Run | Scr Mat Mat Damage Taken 1902 | . 436 1466 Core 513 | . 106 407 Absorbed by Shields . | . . . Core Remaining (%) 78 | 100 57 . Volleys Fired 47 | . 29 18 Largest 2 | . 2 2 Hottest 125 | . 90 125 Shots Fired 61 | . 35 26 Gun 43 | . 27 16 Cannon 3 | . . 3 Launcher 15 | . 8 7 Special . | . . . Kinetic 13 | . . 13 Thermal 23 | . 17 6 Explosive 15 | . 8 7 Electromagnetic 10 | . 10 . Robot Hit Streak 11 | . 9 11 Robot Miss Streak 3 | . 3 1 Penetration Max . | . . . Secondary Targets . | . . . Shots Hit Robots 72 | . 34 38 Core Hits 34 | . 18 16 Critical Hits . | . . . Critical Kills . | . . . Critical Parts Destroyed . | . . . Melee Attacks 56 | . 26 30 Impact 30 | . . 30 Slashing 26 | . 26 . Piercing . | . . . Sneak Attacks 8 | . 1 7 Combat Hostiles . | . . . Follow-up Attacks . | . . . Damage Inflicted 2580 | . 1012 1568 Guns 444 | . 273 171 Cannons 34 | . . 34 Explosions 766 | . 529 237 Melee 1336 | . 210 1126 Ramming . | . . . Kinetic 121 | . . 121 Thermal 304 | . 220 84 Explosive 719 | . 482 237 Electromagnetic 100 | . 100 . Impact 1126 | . . 1126 Slashing 210 | . 210 . Piercing . | . . . Highest Corruption . | . . . Average Corruption . | . . . Corruption Purged . | . . . Overload Shots . | . . . Overflow Damage 265 | . 65 200 Projectiles . | . . . Explosions 65 | . 65 . Melee 200 | . . 200 Knockbacks 5 | . . 5 Impact 5 | . . 5 Kinetic . | . . . Secondary . | . . . Self-Inflicted Damage 75 | . . 75 Shots 4 | . . 4 Rammed . | . . . Targets Rammed . | . . . Kicked . | . . . Crushed . | . . . Highest Temperature 171 | . 98 171 Average Temperature 42 | . 36 60 Received Heat Transfer 756 | . 216 540 Siege Activations . | . . . Robots Corrupted . | . . . Combat Hostiles . | . . . Parts Fried 3 | . . 3 Impact Corruptions 9 | . . 9 Robots Melted . | . . . Combat Hostiles . | . . . Parts Melted . | . . . Heat Transferred 753 | . 568 185 Parts Sabotaged . | . . . Parts Stolen . | . . . Parts Stripped . | . . . Power Chain Reactions 1 | . 1 . Missiles Intercepted . | . . . Alert | -11 -10 -9 ------- Run | Scr Mat Mat Peak Influence 242 | . 212 242 Average Influence 52 | . 92 113 Maximum Alert Level 1 | . 1 1 Low Security (%) 96 | 100 88 95 Level 1 3 | . 11 4 Level 2 . | . . . Level 3 . | . . . Level 4 . | . . . Level 5 . | . . . High Security . | . . . Max Security . | . . . Squads Dispatched 6 | . 3 3 Investigation . | . . . Extermination . | . . . Reinforcement 6 | . 3 3 Assault . | . . . Garrison . | . . . Intercept . | . . . Construction Impeded 1 | . . 1 Haulers Reinforced . | . . . Stealth | -11 -10 -9 --------- Run | Scr Mat Mat Distress Signals 2 | . . 2 Communications Jammed . | . . . Distress Signals . | . . . Times Spotted 44 | . 18 26 Peak Tracking Total 8 | . 5 8 Tactical Retreats 6 | . 2 4 Traps | -11 -10 -9 ------- Run | Scr Mat Mat Traps Triggered . | . . . Indirectly . | . . . Trap Hack Attempts . | . . . Triggered . | . . . Disarmed . | . . . Reprogrammed . | . . . Reused . | . . . Traps Extracted . | . . . Installed . | . . . Triggered . | . . . Machines | -11 -10 -9 ---------- Run | Scr Mat Mat Machines Disabled 1 | . . 1 Max in Single Turn 1 | . . 1 Machines Sabotaged . | . . . Garrisons Compromised . | . . . Overloaded Fab Kills . | . . . Fab Network Shutdowns . | . . . Hacking | -11 -10 -9 --------- Run | Scr Mat Mat Machines Accessed 5 | . 2 3 Terminals 4 | . 1 3 Fabricators . | . . . Repair Stations 1 | . 1 . Recycling Units . | . . . Scanalyzers . | . . . Garrison Access . | . . . Total Hacks 12 | . 3 9 Successful 11 | . 3 8 Failed 1 | . . 1 Catastrophic . | . . . Database Lockouts . | . . . Manual . | . . . Terminals 10 | . 1 9 Fabricators . | . . . Repair Stations 2 | . 2 . Recycling Units . | . . . Scanalyzers . | . . . Garrison Access . | . . . Terminal Hacks 9 | . 1 8 Record 5 | . . 5 Prototype ID Bank 1 | . . 1 Hauler Manifests 1 | . . 1 Registered Prototypes 1 | . . 1 Zone Layout 1 | . 1 . Fabricator Hacks . | . . . Repair Station Hacks 2 | . 2 . Scan Component 1 | . 1 . Repair 1 | . 1 . Recycling Unit Hacks . | . . . Scanalyzer . | . . . Garrison Access Hacks . | . . . Unauthorized Hacks . | . . . Terminals . | . . . Fabricators . | . . . Repair Stations . | . . . Recycling Units . | . . . Scanalyzers . | . . . Garrison Access . | . . . Data Cores Recovered . | . . . Used . | . . . Hacking Detections 3 | . . 3 Full Trace Events . | . . . Feedback Events . | . . . Feedback Blocked . | . . . Robot Schematics Acquired . | . . . Robots Built . | . . . Matter . | . . . Time . | . . . Total Robot Build Rating . | . . . Part Schematics Acquired . | . . . Parts Built . | . . . Matter . | . . . Time . | . . . Total Part Build Rating . | . . . Parts Repaired 1 | . 1 . Time 32 | . 32 . Parts Recycled . | . . . Recycled Matter . | . . . Retrieved Matter . | . . . Retrieved Components . | . . . Parts Scanalyzed . | . . . Part Schematics Acquired . | . . . Parts Damaged . | . . . Bothacking | -11 -10 -9 ------------ Run | Scr Mat Mat Used RIF Installer . | . . . Robots Hacked . | . . . Non-combat . | . . . Combat . | . . . Robot Hacks Applied . | . . . Relay Couplers Released . | . . . Robots Rewired . | . . . Allies Hacked . | . . . Hacks Repelled . | . . . Allies | -11 -10 -9 -------- Run | Scr Mat Mat Total Allies . | . . . Largest Group . | . . . Highest-Rated Group . | . . . Highest-Rated Ally . | . . . Total Orders . | . . . Ally Attacks . | . . . Total Damage . | . . . Kills . | . . . Allies Corrupted . | . . . Allies Melted . | . . . Intel | -11 -10 -9 ------- Run | Scr Mat Mat Robot Analysis Total . | . . . Derelict Logs Recovered . | . . . Drone Launches . | . . . Drone Recoveries . | . . . Exploration | -11 -10 -9 ------------- Run | Scr Mat Mat Turns Passed 2380 | 1185 524 671 Spaces Moved 972 | 341 270 361 Core 14 | 4 . 10 Treads 1 | . . 1 Legs 957 | 337 270 350 Wheels . | . . . Hover . | . . . Flight . | . . . Fastest Speed 50 | 50 120 120 Average Speed 121 | 119 120 124 Slowest Speed 160 | 120 120 160 Overloaded Moves . | . . . Propulsion Burnouts . | . . . Robots Hopped . | . . . Cave-ins Triggered . | . . . Exploration Rate (%) 34 | 27 38 38 Regions Visited 2 Branch Regions . Pre-discovered Areas . | . . . Known Exits Taken . | . . . Unknown Exits Taken 2 | 1 1 . Scrap Searched . | . . . Spaces Dug 13 | . 13 . Terrain Destroyed 93 | . 60 33 Melee 13 | . 13 . Projectile . | . . . AOE 80 | . 47 33 Actions | -11 -10 -9 --------- Run | Scr Mat Mat Total 1993 | 1117 384 492 Wait 832 | 761 33 38 Move 970 | 340 269 361 Hop . | . . . Pick Up 28 | 10 9 9 Fast Attach 10 | 2 3 5 Attach 13 | 4 1 8 Detach 1 | . . 1 Swap 18 | . 5 13 Drop 18 | . 9 9 Fire 47 | . 29 18 Melee 56 | . 26 30 Ram . | . . . Kick . | . . . Crush . | . . . Escape Stasis . | . . . Rewire . | . . . Trap . | . . . Miscellaneous . | . . . Route ------- -11/Scrapyard -10/Materials -9/Materials (discovered 1 exit: [*Min]) History --------- Turn | Location | Event 11 | -11/Scrapyard | Discovered new exit (range 15) 1186 | -11/Scrapyard | Entered Materials 1187 | -10/Materials | Build established: Mutant 1566 | -10/Materials | Repaired Imp. Terrain Scanner 1705 | -10/Materials | Discovered new exit (range 3) 1710 | -10/Materials | Entered another Materials area 1710 | -9/Materials | Evolved 2 slots: Propulsion x2 2118 | -9/Materials | Core integrity fell below 50% 2141 | -9/Materials | Lost 6 parts (1p3n2w) 2198 | -9/Materials | Core integrity fell below 20% 2377 | -9/Materials | Discovered new exit (range 6) 2381 | -9/Materials | Destroyed by Y-45 Defender with Heavy Assault Rifle Last Messages --------------- Destroyed Lgt. Ion Engine. R-06 Scavenger system corrupted by crushing effect. R-06 Scavenger knocked back. Destroyed Heat Sink. G-34 Mercenary system corrupted by crushing effect. G-34 Mercenary system terminally corrupted. Ion Engine fried. Acquired 35 matter. Acquired Aluminum Leg. Dropped Ion Engine. Dropped Hvy. Mace. T-07 Excavator is excavating. Connecting with Terminal... T-07 Excavator is excavating. W-16 Scout sends out distress signal. Lgt. Ion Engine destroyed. Sml. Storage Unit destroyed. Connecting with Terminal... Processing Tank disabled. EXIT=FOUND Map ----- +----------------------------------------------------+ | #????????????????????? ## #### #???#% | | ?#?#???????????????# ?# #??# """ #???# | | ?????????????? ????# ??# #??# """"" #???# | | ????##???#?????#???# ??# #### """"" #???# | | ??????#?#?#????????# ???# + """"" #???# | | ???? ??????????????# ???# #### """ #???# | | ?#??????????? ?????# ????# #??# #???# | | ???????????????????# ????# ########+######## | | ???????????????????# ?????# | | ???????????????????#+###+##### | | ????????????????????? | | ?????????????????????? | | ?????????????????????? | | ??????????????????????# | | ??????????????????????# | | ??????????????????????# ######## ######## | | ??????????????????????# """ ########/##?????# | | ??????????????????????# """ # #?????# | | ??????????????????????# """ # #?????# | | ??????????????????????# """ # """ """ #?????# | | ??????????????????????# " " # """ """ #?????# | | ??????????????????????# / """ """ #?????# | | ??????????????????????+ # #?????# | | ??????????????????????# Y###### #?????# | | ?????????????????????## ####?# """T""" #?????# | | ?????????????????????# @"""#?###########?????# | | ?????????????????????# "#?????????????????# | | ?????????????????????# k !"#?????????????????# | | ?????????????????????# < ""#?????????????????# | | ?????????????????????# a !"#????????????????## | | ?????????????????????# "#?????????????#### | | ?????????????????????# """#?????????????# # T | | ?????????????????????## ####?????????????# "" | | ??????????????????????# #????????????????# # | | ??????????????????????+ ?????????????????#### | | ??????????????????????#r ????????????????????#### | | ??????????????????????# ???????????????????????? | | ??????????????????????# ???????????????????????? | | ??????????????????????# ???????????????????????? | | ??????????????????????+ ???????????????????????? | | ??????????????????????? ???????????????????????? | | ?????????????????????????????????????????????????[ | | ?????????????????????????????????????????????????? | | ?????????????????????????????????????????????????? | | ?????????????????????????????????????????????????? | | ?????????????????????????????????????????????????? | | ?????????????????????????????????????????????????? | | ?????????????????????????????????????????????????? | | ?????????????????????????????????????????????????? | | ?????????????????????????????????????????????????? | +----------------------------------------------------+ Best States ------------- Heat Dissipation 28 Energy Generation 12 Energy Capacity 265 Matter Stores 300 Matter Capacity 300 Sight Range 16 Terrain Scan Range 16 Terrain Scan Density 10 Evasion (%) 40 Melee Accuracy 5 Recoil Reduction 1 Item Schematics ----------------- None Robot Schematics ------------------ None Fabricated ------------ Nothing Alien Tech Used ----------------- None Achievements -------------- Part-time Excavator Challenges ------------ None Game ------ Seed BurstExplosiveClaws Manual? 0 Play Time 00:41:34 Cumulative 3.9 hours Start 2020.03.08 @ 15:41:42 End 2020.03.08 @ 16:25:24 Sessions 1 Manual Loads 0 Difficulty Rogue Special Mode None Game No. 3 Rogue 3 Adventurer 0 Explorer 0 Win Type - Total 0 Types 0/0/0/0/0/0/0 Lore% 1 Gallery% 5 Achievement% 4 Wizard Run 0 Options --------- ASCII 1 Keyboard 1 Movement Vi Keybinds 0 Fullscreen 2 Font 18/X11 Map View 76x50 Tactical HUD 0 Map Filters NONE Filters NONE Steam 1 RUN: 45ae4ba9-a55a-411f-a1c7-b6241097a9b5